lending/lending_fUSD_20240120
["ID","MTS","AMOUNT","RATE_DAILY","PERIOD"]
[312330342,1705781236239,-2602.575,0.00052054,50]
[312330343,1705781236263,-400.0,0.0005211,120]
[312330344,1705781236285,-509.96,0.00052328,60]
[312330345,1705781236307,-8478.6,0.00052331,117]
[312330346,1705781236328,-350.0,0.00052493,120]
[312330347,1705781236349,-509.96,0.00052602,60]
[312330348,1705781236370,-3123.09,0.00052739,55]
[312330349,1705781236391,-509.96,0.00052876,60]
[312330350,1705781236415,-300.0,0.00053,54]
[312330351,1705781236436,-1850.969995,0.00053,60]
[312330352,1705781236459,-400.0,0.00053041,120]
[312330353,1705781236482,-509.96,0.0005315,60]
[312330354,1705781236503,-509.96,0.00053424,60]
[312330355,1705781236524,-3643.605,0.00053424,60]
[312330356,1705781236713,-4070.69254397,0.000535,40]
[312330357,1705781236737,-350.0,0.00053534,120]
[312330358,1705781236759,-165.35,0.00053641,120]
[312330359,1705781236783,-159.53,0.00053641,120]
[312330360,1705781236806,-509.96,0.00053698,60]
[312330361,1705781236830,-154.8,0.00053951,120]
[312330362,1705781236851,-509.96,0.00053972,60]
[312330363,1705781236872,-400.0,0.00053973,120]
[312330364,1705781236896,-200.0,0.00053987,87]
[312330365,1705781236919,-465.0,0.00054,120]
[312330366,1705781236942,-5355.09101985,0.00054,120]
[312330367,1705781236965,-300.0,0.00054,55]
[312330368,1705781236987,-1000.12560973,0.00054,60]
[312330369,1705781237009,-4164.12,0.00054109,65]
[312330370,1705781237031,-509.96,0.00054246,60]
[312330371,1705781237053,-509.96,0.0005452,60]
[312330372,1705781237075,-350.0,0.00054575,120]
[312330373,1705781237098,-206.0,0.00054627,51]
[312330374,1705781237120,-509.96,0.00054794,60]
[312330375,1705781237142,-4684.635,0.00054794,70]
[312330376,1705781237421,500.39932627,0.00045,120]
[312330377,1705781243947,156.0,0.000485,60]
[312330378,1705781244196,156.0,0.000496,60]
[312330379,1705781341084,5307.28,0.00035783,30]
[312330381,1705781382737,1022.579363,0.00035783,30]
[312330398,1705781431487,-190.97652873,0.00020319,2]
[312330399,1705781431497,-228.3967642,0.0002032,2]
[312330400,1705781431506,-4351.63106401,0.0002032,2]
[312330401,1705781431515,-867.50020387,0.00020321,2]
[312330402,1705781431524,-289.25,0.00020333,2]
[312330403,1705781431534,-309.98536882,0.00020518,2]
[312330404,1705781431544,-206.0,0.00021391,2]
[312330405,1705781431559,-156.61,0.00021811,2]
[312330406,1705781431569,-45900.27339727,0.00021834,2]
[312330407,1705781431582,-459.75323735,0.00021834,2]
[312330408,1705781431594,-1127.3767494,0.00021834,2]
[312330409,1705781431658,-13587.08764,0.00021834,2]
[312330410,1705781431673,-1922.96638505,0.00021834,2]
[312330411,1705781431685,-326.43046132,0.00021834,2]
[312330412,1705781431696,-3556.76371237,0.00021834,2]
[312330413,1705781431708,-8260.0,0.00021834,2]
[312330414,1705781431721,-18710.60512909,0.00021834,2]
[312330415,1705781431732,-948.21495962,0.00021834,2]
[312330416,1705781431744,-37572.73601998,0.00021834,2]
[312330417,1705781431770,-1292.96276069,0.00021834,2]
[312330418,1705781431781,-6432.22103282,0.00021834,2]
[312330419,1705781431792,-8310.39537342,0.00021834,2]
[312330434,1705781437481,-391.45736558,0.00021834,2]
[312330435,1705781437543,-49958.06577604,0.00021834,2]
[312330436,1705781437557,-209.82,0.00021846,2]
[312330437,1705781437566,-2000.0,0.0002185,2]
[312330438,1705781437576,-215.0,0.00021889,2]
[312330439,1705781437586,-187.6,0.00021899,2]
[312330440,1705781437595,-200.0,0.00022444,2]
[312330441,1705781437605,-2571.9,0.00022444,2]
[312330442,1705781437614,-250.0,0.00022542,2]
[312330443,1705781437624,-289.25,0.00022597,2]
[312330444,1705781437634,-8952.8747,0.000227,2]
[312330445,1705781437643,-245.6026071,0.00022798,2]
[312330446,1705781437652,-295.51839243,0.00022798,2]
[312330447,1705781437661,-1070.78652453,0.00022798,2]
[312330448,1705781437671,-155.0,0.00022798,2]
[312330449,1705781437680,-543.30184604,0.00022798,2]
[312330450,1705781437689,-279.34722121,0.00022798,2]
[312330451,1705781437698,-2121.51808832,0.00022798,2]
[312330452,1705781437708,-3705.16837786,0.00022798,2]
[312330453,1705781437717,-155.0,0.00022799,2]
[312330454,1705781437726,-4626.66440069,0.00022799,2]
[312330455,1705781437737,-821.19701474,0.00022799,2]
[312330456,1705781437747,-22425.89176724,0.000228,2]
[312330457,1705781437759,-14672.37741943,0.000228,2]
[312330458,1705781437772,-20411.03573374,0.000228,2]
[312330459,1705781437783,-89701.43950509,0.000228,2]
[312330460,1705781437793,-821.19701466,0.0002281,2]
[312330461,1705781437802,-821.19701466,0.00022821,2]
[312330462,1705781437811,-821.19701466,0.00022833,2]
[312330463,1705781437820,-821.19701466,0.00022844,2]
[312330464,1705781437830,-821.19701466,0.00022855,2]
[312330465,1705781437841,-821.19701466,0.00022866,2]
[312330466,1705781437850,-821.19701466,0.00022878,2]
[312330467,1705781437859,-821.19701466,0.00022889,2]
[312330468,1705781437870,-142488.135385,0.00022899,2]
[312330469,1705781437881,-102511.864615,0.00022899,2]
[312330470,1705781437892,-5000.0,0.00022899,2]
[312330471,1705781437902,-876.58908947,0.000229,2]
[312330472,1705781437911,-163.95593218,0.000229,2]
[312330473,1705781437921,-157.269795,0.000229,2]
[312330474,1705781437931,-821.19701466,0.000229,2]
[312330476,1705781437940,-2149.37762032,0.000229,2]
[312330478,1705781437952,-56754.09931827,0.000229,2]
[312330481,1705781437964,-37104.08854128,0.000229,2]
[312330483,1705781437976,-3201.23736895,0.000229,2]
[312330485,1705781437987,-739.337599,0.000229,2]
[312330487,1705781437998,-1372.06793841,0.000229,2]
[312330490,1705781438010,-15548.54327604,0.000229,2]
[312330492,1705781438025,-1089.58687839,0.000229,2]
[312330494,1705781438037,-387946.70942785,0.000229,2]
[312330496,1705781438046,-360.80839164,0.000229,2]
[312330499,1705781438059,-499.07918906,0.000229,2]
[312330501,1705781438068,-3672.54821962,0.000229,2]
[312330503,1705781438077,-227.36657171,0.000229,2]
[312330505,1705781438087,-72060.32330838,0.000229,2]
[312330507,1705781438096,-4651.86755386,0.0002298,2]
[312330509,1705781438106,-5442.70539136,0.00022998,2]
[312330511,1705781438115,-288.92756394,0.00022998,2]
[312330513,1705781438124,-3680.83873111,0.00022998,2]
[312330515,1705781438134,-940.48918206,0.00022998,2]
[312330517,1705781438143,-263.3780082,0.00022998,2]
[312330519,1705781438152,-3675.87540521,0.00022998,4]
[312330521,1705781438162,-155.0,0.00022998,2]
[312330523,1705781438171,-177.82092224,0.00022999,2]
[312330525,1705781438180,-2618.74812066,0.00022999,2]
[312330527,1705781438189,-384.58030079,0.00022999,2]
[312330537,1705781438271,-644.17083976,0.00022999,2]
[312330539,1705781438280,-151.5463237,0.00022999,2]
[312330541,1705781438289,-150.0,0.00022999,2]
[312330543,1705781438298,-151.5463237,0.00022999,2]
[312330545,1705781438307,-150.0,0.00022999,2]
[312330547,1705781438316,-151.5463237,0.00022999,2]
[312330549,1705781438324,-150.0,0.00022999,2]
[312330551,1705781438333,-151.5463237,0.00022999,2]
[312330553,1705781438342,-150.0,0.00022999,2]
[312330555,1705781438351,-151.5463237,0.00022999,2]
[312330557,1705781438360,-150.0,0.00022999,2]
[312330559,1705781438369,-151.5463237,0.00022999,2]
[312330561,1705781438378,-150.0,0.00022999,2]
[312330563,1705781438388,-151.5463237,0.00022999,2]
[312330565,1705781438397,-150.0,0.00022999,2]
[312330567,1705781438405,-151.5463237,0.00022999,2]
[312330569,1705781438414,-150.0,0.00022999,2]
[312330571,1705781438423,-151.5463237,0.00022999,2]
[312330573,1705781438432,-150.0,0.00022999,2]
[312330575,1705781438441,-151.5463237,0.00022999,2]
[312330577,1705781438450,-150.0,0.00022999,2]
[312330579,1705781438459,-151.5463237,0.00022999,2]
[312330581,1705781438468,-150.0,0.00022999,2]
[312330583,1705781438477,-1145926.39634894,0.00023,3]
[312330585,1705781438486,-1445787.69565755,0.00023,2]
[312330587,1705781438498,-426487.768516,0.00023,2]
[312330589,1705781438509,-103956.77504338,0.00023,2]
[312330593,1705781438528,-13146.68010839,0.00023,2]
[312330595,1705781438540,-328.92787868,0.00023,2]
[312330597,1705781438554,-4037.0169489,0.00023,2]
[312330598,1705781438566,-7442.804616,0.00023,2]
[312330599,1705781438577,-5403.48247186,0.00023,2]
[312330726,1705781440706,-506.88453471,0.00023,2]
[312330727,1705781440760,-298.044322,0.00023,2]
[312330728,1705781440932,-222177.76861257,0.00023,2]
[312330729,1705781440944,-591.00293679,0.00023,2]
[312330730,1705781442495,-1904.68355459,0.00023,2]
[312330731,1705781442659,-22848.35258259,0.00023,2]
[312330747,1705781447596,-451.085,0.00022799,2]
[312330748,1705781447606,-4345.38724661,0.00022899,2]
[312330749,1705781447615,-221.07498233,0.00022899,2]
[312330750,1705781447626,-244.93518239,0.00022899,2]
[312330751,1705781447635,-4100.8563025,0.000229,2]
[312330756,1705781447988,-899.1436975,0.000229,2]
[312330757,1705781447997,-228.23494898,0.00022999,2]
[312330758,1705781448007,-1812.15097522,0.00022999,2]
[312330759,1705781448016,-64563.44642137,0.00023,2]
[312330760,1705781448032,-10910.4034237,0.00023,2]
[312330761,1705781448043,-383.26905656,0.00023,2]
[312330766,1705781793520,1866.471168,0.00035783,30]
[312330767,1705781889642,305.810498,0.00035783,30]
[312330768,1705782282161,150.0,0.00035934,30]
[312330769,1705782435904,-155.0,0.00020605,2]
[312330770,1705782435926,-294.58,0.00020606,2]
[312330771,1705782448399,-7348.71656511,0.00021725,2]
[312330772,1705782448419,-82201.70343489,0.00021735,2]
[312330779,1705782631721,-279.85,0.00020205,2]
[312330780,1705782631732,-228.23494898,0.00021733,2]
[312330781,1705782631746,-155.0,0.00021734,2]
[312330782,1705782631757,-1812.15097522,0.00021734,2]
[312330783,1705782631767,-6605.73019293,0.00021735,2]
[312330784,1705782631834,-40086.2014233,0.00021735,2]
[312330785,1705782631848,-730.36718777,0.00021735,2]
[312330786,1705782631860,-6549.97879291,0.00021735,2]
[312330787,1705782631890,-2062.15,0.00021735,2]
[312330788,1705782631905,-3152.3332219,0.00021735,2]
[312330789,1705782631953,-316.76816214,0.00021735,2]
[312330807,1705782637695,-2055.1531,0.00021735,2]
[312330808,1705782637805,-1009.125,0.00021735,2]
[312330809,1705782637879,-3503.5,0.00021735,2]
[312330810,1705782637921,-333.42868128,0.00021735,2]
[312330811,1705782637937,-19509.20820288,0.00021735,2]
[312330812,1705782637953,-282.89706329,0.00021735,2]
[312330813,1705782637964,-847.06410669,0.00021735,2]
[312330814,1705782637977,-1964.55439765,0.00021735,2]
[312330815,1705782637990,-610.1887134,0.00021735,2]
[312330816,1705782638001,-1098.1329655,0.00021735,2]
[312330817,1705782638011,-1817.64,0.00021866,2]
[312330818,1705782638023,-186.45,0.00021896,2]
[312330819,1705782638034,-324.72,0.00021896,2]
[312330820,1705782638045,-250.0,0.00022058,2]
[312330821,1705782638056,-159.85,0.00022069,2]
[312330822,1705782638066,-700.45277303,0.00022077,2]
[312330823,1705782638077,-22694.88,0.00022154,2]
[312330824,1705782638088,-25797.93,0.00022176,2]
[312330825,1705782638098,-716.73,0.00022203,2]
[312330826,1705782638109,-250.0,0.00022229,2]
[312330827,1705782638119,-840.0,0.00022229,2]
[312330828,1705782638130,-156.48,0.00022282,2]
[312330829,1705782638140,-279.85,0.00022469,2]
[312330830,1705782638151,-160.0,0.0002258,2]
[312330831,1705782638162,-167.47,0.00022662,2]
[312330832,1705782638172,-499.99,0.00022844,2]
[312330833,1705782638182,-4146.61901106,0.00022844,3]
[312330834,1705782638193,-5000.0,0.000229,2]
[312330835,1705782638204,-505905.04796851,0.000229,2]
[312330837,1705782638215,-4006.08647569,0.000229,2]
[312330839,1705782638225,-161.32555091,0.000229,2]
[312330841,1705782638236,-1000.0,0.000229,2]
[312330843,1705782638246,-227.36657171,0.000229,2]
[312330845,1705782638257,-499.07918906,0.000229,2]
[312330847,1705782638267,-3672.54821962,0.000229,2]
[312330850,1705782638278,-360.80839164,0.000229,2]
[312330852,1705782638289,-291.73786945,0.00022997,2]
[312330854,1705782638299,-2618.74812066,0.00022997,2]
[312330856,1705782638310,-384.58030079,0.00022997,2]
[312330858,1705782638320,-155.0,0.00022997,2]
[312330860,1705782638331,-177.82092224,0.00022997,2]
[312330863,1705782638342,-6690.30643363,0.00022997,2]
[312330865,1705782638352,-263.3780082,0.00022997,2]
[312330867,1705782638363,-6244.25855149,0.00022997,2]
[312330869,1705782638373,-3675.87540521,0.00022997,4]
[312330871,1705782638384,-163.7690261,0.00022997,2]
[312330873,1705782638394,-940.48918206,0.00022997,2]
[312330875,1705782638405,-3680.83873111,0.00022997,2]
[312330878,1705782638416,-288.92756394,0.00022997,2]
[312330880,1705782638426,-5442.70539136,0.00022997,2]
[312330882,1705782638438,-1248.34,0.00022997,2]
[312330884,1705782638449,-1391.79688361,0.00022998,2]
[312330886,1705782638460,-171.89568973,0.00022998,2]
[312330889,1705782638473,-233.20989543,0.00022999,2]
[312330891,1705782638483,-190.56075453,0.00022999,2]
[312330893,1705782638494,-276.78292235,0.00022999,2]
[312330895,1705782638504,-3667.33,0.00022999,2]
[312330897,1705782638515,-150.0,0.00022999,2]
[312330899,1705782638525,-151.5463237,0.00022999,2]
[312330901,1705782638536,-150.0,0.00022999,2]
[312330904,1705782638547,-151.5463237,0.00022999,2]
[312330906,1705782638559,-151.5463237,0.00022999,2]
[312330908,1705782638570,-150.0,0.00022999,2]
[312330910,1705782638580,-151.5463237,0.00022999,2]
[312330912,1705782638591,-150.0,0.00022999,2]
[312330914,1705782638602,-151.5463237,0.00022999,2]
[312330916,1705782638613,-150.0,0.00022999,2]
[312330919,1705782638623,-151.5463237,0.00022999,2]
[312330921,1705782638634,-150.0,0.00022999,2]
[312330923,1705782638644,-151.5463237,0.00022999,2]
[312330925,1705782638654,-150.0,0.00022999,2]
[312330927,1705782638665,-151.5463237,0.00022999,2]
[312330930,1705782638675,-150.0,0.00022999,2]
[312330932,1705782638685,-151.5463237,0.00022999,2]
[312330934,1705782638696,-150.0,0.00022999,2]
[312330936,1705782638706,-1145926.39634894,0.00023,3]
[312330938,1705782638718,-1291590.30417987,0.00023,2]
[312330993,1705782639219,-426487.768516,0.00023,2]
[312330999,1705782639266,-103956.77504338,0.00023,2]
[312331001,1705782639278,-488.75743333,0.00023,2]
[312331004,1705782639289,-5014.43537688,0.00023,2]
[312331006,1705782639301,-59933.51641759,0.00023,2]
[312331008,1705782639312,-694.270008,0.00023,2]
[312331012,1705782639343,-3498.94564876,0.00023,2]
[312331015,1705782639353,-3330.45600159,0.00023,2]
[312331041,1705782640181,-470.69889728,0.00023,2]
[312331042,1705782640337,-19708.13123696,0.00023,2]
[312331043,1705782640351,-6586.09272988,0.00023,2]
[312331044,1705782640365,-751.69411567,0.00023,2]
[312331045,1705782640380,-3868.17937173,0.00023,2]
[312331064,1705782643485,-322.99304711,0.00023,2]
[312331067,1705782643497,-329.305996,0.00023,2]
[312331070,1705782643543,-2055.008778,0.00023,2]
[312331071,1705782643560,-355.0000039,0.00023,2]
[312331072,1705782643571,-590.6973933,0.00023,2]
[312331073,1705782643602,-319.40421795,0.00023,2]
[312331074,1705782643612,-5371.76028708,0.00023,2]
[312331075,1705782643624,-3133.39765011,0.00023,2]
[312331076,1705782643664,-3620.36034344,0.00023,2]
[312331077,1705782643675,-1734.03922036,0.00023,2]
[312331078,1705782643719,-112835.6880175,0.00023,2]
[312331079,1705782643730,-660108.61651965,0.00023,2]
[312331080,1705782643741,-266143.0000002,0.00023,2]
[312331081,1705782643752,-1895.729958,0.00023,2]
[312331082,1705782643778,-950418.76161063,0.00023,2]
[312331089,1705782644179,-1790.19121786,0.00023,2]
[312331090,1705782644190,-1894.04363084,0.00023,2]
[312331091,1705782644202,-502.38567482,0.00023,2]
[312331092,1705782644213,-2117.59814317,0.00023,2]
[312331093,1705782644224,-422.62484655,0.00023,2]
[312331094,1705782644236,-3379.16024844,0.00023,2]
[312331095,1705782644247,-463.3098459,0.00023,2]
[312331096,1705782644267,-327.75206167,0.00023,2]
[312331097,1705782644280,-675.00552142,0.00023,2]
[312331098,1705782644292,-272.89258568,0.00023,2]
[312331099,1705782644303,-4338.7,0.00023,2]
[312331101,1705782644316,-564.2775,0.00023,2]
[312331102,1705782644340,-14751.90188016,0.00023,2]
[312331103,1705782644352,-2831.03010878,0.00023,2]
[312331105,1705782645732,-313.50822852,0.00023,2]
[312331106,1705782646698,-495.06200404,0.00023,2]
[312331107,1705782646709,-1095.76779495,0.00023,2]
[312331108,1705782646776,-5981.164186,0.00023,2]
[312331109,1705782646787,-761.37282149,0.00023,2]
[312331110,1705782646799,-8536.32643153,0.00023,2]
[312331111,1705782646810,-267.12499998,0.00023,2]
[312331112,1705782646821,-339.40624023,0.00023,2]
[312331113,1705782646840,-551.28542087,0.00023,2]
[312331114,1705782646852,-768.0,0.00023,2]
[312331115,1705782646874,-473.05077416,0.00023,2]
[312331116,1705782646885,-779.38598227,0.00023,2]
[312331117,1705782646897,-1335.57189952,0.00023,2]
[312331118,1705782646908,-46184.07725212,0.00023,2]
[312331119,1705782646919,-126667.11414222,0.00023,2]
[312331120,1705782646932,-20055.07270493,0.00023,2]
[312331121,1705782646950,-507.66341396,0.00023,2]
[312331122,1705782646961,-866.29924,0.00023,2]
[312331123,1705782646973,-3029.35537805,0.00023,2]
[312331124,1705782646985,-335.30570427,0.00023,2]
[312331125,1705782647007,-604.99816099,0.00023,2]
[312331126,1705782647018,-1241.54606796,0.00023,2]
[312331132,1705782690502,1866.471168,0.00035934,30]
[312331139,1705782745570,361.68593164,0.00018394,2]
[312331140,1705782788999,305.810498,0.00035934,30]
[312331146,1705783421972,696.83,0.000196,2]
[312331147,1705783491858,307.72,0.00019208,2]
[312331152,1705783591641,1866.471168,0.00035934,30]
[312331154,1705783632131,166.21740035,0.00019565,2]
[312331170,1705783689290,305.810498,0.00035934,30]
[312331197,1705783831849,-155.0,0.00019645,2]
[312331198,1705783831859,-218.51188536,0.00019645,2]
[312331201,1705783831909,-16.73945925,0.00019645,2]
[312331202,1705783831918,-501.64649698,0.00019646,2]
[312331203,1705783831927,-5445.7964682,0.00019646,2]
[312331204,1705783831936,-260.29229258,0.00019647,2]
[312331205,1705783831945,-289.07791306,0.00019647,2]
[312331206,1705783831954,-1853.21827402,0.00019647,2]
[312331207,1705783831963,-10529.67645274,0.00019647,2]
[312331208,1705783831972,-16769.48246492,0.00019647,2]
[312331209,1705783831981,-176.43265768,0.00019648,2]
[312331210,1705783831997,-75.61182118,0.00019648,2]
[312331211,1705783832006,-1561.74389882,0.00019648,2]
[312331212,1705783832026,-501.48085518,0.00019648,2]
[312331213,1705783832046,-967.98339347,0.00019648,2]
[312331214,1705783832055,-155.0,0.00019648,2]
[312331215,1705783832064,-24224.57087031,0.00019648,2]
[312331216,1705783832076,-130.38068781,0.00019648,2]
[312331217,1705783832085,-215.63475234,0.00019649,2]
[312331218,1705783832094,-2621.14781123,0.00019649,2]
[312331219,1705783832103,-4628.20523515,0.00019649,2]
[312331220,1705783832112,-190.97652873,0.0001965,2]
[312331221,1705783832122,-1092.0,0.00019659,2]
[312331222,1705783832131,-150.0,0.0001966,2]
[312331223,1705783832140,-150.0,0.00019671,2]
[312331224,1705783832149,-499.99,0.00019694,2]
[312331225,1705783832158,-397.86738474,0.00019694,2]
[312331226,1705783832170,-1126.07915188,0.00019694,2]
[312331227,1705783832185,-272.22834074,0.00019694,2]
[312331229,1705783832197,-1871.15512264,0.00019694,2]
[312331231,1705783832206,-2363.71097656,0.00019695,2]
[312331234,1705783832222,-318.74363918,0.00019695,2]
[312331282,1705783837911,-13413.99303131,0.00019695,2]
[312331284,1705783837920,-228.31585659,0.00019699,2]
[312331286,1705783837929,-211.71085073,0.00019699,2]
[312331288,1705783837938,-183.04264597,0.00019699,2]
[312331290,1705783837947,-326.44761379,0.00019699,2]
[312331292,1705783837957,-248.75310239,0.000197,2]
[312331293,1705783837965,-89861.31209335,0.00019701,2]
[312331295,1705783837974,-172.75471988,0.00019714,2]
[312331297,1705783837985,-23900.0,0.00020734,2]
[312331299,1705783837994,-150.0,0.00020876,2]
[312331301,1705783838003,-205.0,0.00020906,2]
[312331303,1705783838012,-737.72,0.00020918,2]
[312331305,1705783838022,-219.43,0.00021001,2]
[312331306,1705783838031,-303.92,0.00021003,2]
[312331307,1705783838040,-2000.0,0.00021143,2]
[312331308,1705783838049,-223.12,0.0002115,2]
[312331309,1705783838058,-250.0,0.00021161,2]
[312331310,1705783838067,-672.0,0.00021164,2]
[312331311,1705783838076,-160.12,0.0002122,2]
[312331312,1705783838085,-189.63,0.00021426,2]
[312331313,1705783838094,-200.24,0.00021429,2]
[312331314,1705783838103,-307.72,0.00021472,2]
[312331315,1705783838112,-200.24,0.00021488,2]
[312331316,1705783838121,-167.47,0.00021528,2]
[312331317,1705783838130,-200.24,0.00021546,2]
[312331318,1705783838139,-200.24,0.00021605,2]
[312331319,1705783838148,-188.31,0.00021644,2]
[312331320,1705783838157,-200.24,0.00021664,2]
[312331321,1705783838166,-200.24,0.00021723,2]
[312331322,1705783838176,-1928.16587281,0.00021733,2]
[312331323,1705783838186,-200.24,0.00021782,2]
[312331324,1705783838195,-200.24,0.0002184,2]
[312331325,1705783838204,-160.24,0.00021897,2]
[312331327,1705783838213,-200.24,0.00021899,2]
[312331329,1705783838223,-750.0,0.000219,2]
[312331331,1705783838233,-200.24,0.00021958,2]
[312331333,1705783838242,-155.02,0.00021976,2]
[312331335,1705783838252,-155.02,0.00022006,2]
[312331337,1705783838261,-328.0,0.00022012,2]
[312331340,1705783838272,-200.24,0.00022017,2]
[312331341,1705783838284,-155.02,0.00022035,2]
[312331343,1705783838295,-155.02,0.00022064,2]
[312331345,1705783838306,-200.24,0.00022075,2]
[312331347,1705783838315,-155.02,0.00022093,2]
[312331349,1705783838324,-155.02,0.00022123,2]
[312331351,1705783838333,-200.24,0.00022134,2]
[312331354,1705783838342,-155.02,0.00022152,2]
[312331356,1705783838353,-155.02,0.00022181,2]
[312331357,1705783838362,-200.24,0.00022193,2]
[312331359,1705783838370,-155.02,0.00022211,2]
[312331361,1705783838379,-155.02,0.0002224,2]
[312331363,1705783838388,-200.24,0.00022252,2]
[312331365,1705783838397,-155.02,0.00022269,2]
[312331367,1705783838406,-155.02,0.00022299,2]
[312331369,1705783838415,-200.24,0.0002231,2]
[312331371,1705783838424,-155.02,0.00022328,2]
[312331373,1705783838433,-155.02,0.00022357,2]
[312331375,1705783838444,-200.24,0.00022369,2]
[312331377,1705783838453,-155.02,0.00022387,2]
[312331379,1705783838463,-155.02,0.00022416,2]
[312331382,1705783838473,-200.24,0.00022428,2]
[312331384,1705783838482,-188.31,0.00022445,2]
[312331385,1705783838490,-4160.78343721,0.00022487,3]
[312331388,1705783838499,-200.24,0.00022487,2]
[312331389,1705783838508,-2857.0,0.00022537,2]
[312331391,1705783838517,-200.24,0.00022546,2]
[312331393,1705783838526,-223.12,0.00022794,2]
[312331395,1705783838534,-161.18130422,0.000228,2]
[312331397,1705783838544,-356.18193881,0.000228,2]
[312331399,1705783838553,-874.92166107,0.000228,2]
[312331401,1705783838562,-484.03443405,0.000228,2]
[312331403,1705783838571,-161.18130421,0.0002285,2]
[312331406,1705783838580,-356.1819388,0.0002285,2]
[312331408,1705783838590,-181.71064085,0.0002289,2]
[312331410,1705783838598,-428.71667088,0.00022899,5]
[312331412,1705783838607,-5000.0,0.000229,2]
[312331414,1705783838617,-300.0,0.000229,2]
[312331416,1705783838626,-1000.0,0.000229,2]
[312331418,1705783838635,-333.84053965,0.000229,2]
[312331419,1705783838645,-161.32555091,0.000229,2]
[312331421,1705783838653,-505905.04796851,0.000229,2]
[312331423,1705783838662,-161.18130421,0.000229,2]
[312331425,1705783838671,-166.3597297,0.000229,2]
[312331427,1705783838680,-356.1819388,0.000229,2]
[312331429,1705783838690,-1224.18273988,0.000229,2]
[312331432,1705783838699,-180.40419582,0.000229,2]
[312331434,1705783838708,-874.92166106,0.000229,2]
[312331436,1705783838718,-1224.18273987,0.00022911,2]
[312331438,1705783838727,-180.40419582,0.00022922,2]
[312331440,1705783838736,-1224.18273987,0.00022922,2]
[312331442,1705783838745,-155.0,0.00022993,2]
[312331444,1705783838754,-4636.4763127,0.00022993,2]
[312331446,1705783838764,-155.0,0.00022993,2]
[312331447,1705783838773,-155.0,0.00022993,2]
[312331450,1705783838782,-302.2665932,0.00022993,2]
[312331452,1705783838791,-155.0,0.00022993,2]
[312331454,1705783838802,-418.13341818,0.00022993,2]
[312331456,1705783838810,-221.07498233,0.00022993,2]
[312331458,1705783838819,-4350.07010966,0.00022993,2]
[312331460,1705783838828,-4785.03700035,0.00022993,2]
[312331461,1705783838838,-449.78012718,0.00022993,2]
[312331463,1705783838848,-155.0,0.00022994,2]
[312331466,1705783838857,-33377.27737078,0.00022994,2]
[312331468,1705783838867,-171.89568973,0.00022995,2]
[312331470,1705783838876,-1391.79688361,0.00022995,2]
[312331472,1705783838885,-276.78292235,0.00022995,2]
[312331473,1705783838894,-233.20989543,0.00022995,2]
[312331476,1705783838904,-940.48918206,0.00022995,2]
[312331477,1705783838913,-177.82092224,0.00022995,2]
[312331479,1705783838922,-155.0,0.00022995,2]
[312331482,1705783838931,-263.3780082,0.00022995,2]
[312331484,1705783838941,-384.58030079,0.00022995,2]
[312331486,1705783838950,-163.7690261,0.00022995,2]
[312331488,1705783838959,-3675.87540521,0.00022995,4]
[312331490,1705783838968,-63169.84479337,0.00022995,2]
[312331492,1705783838977,-9998.11405102,0.00022997,2]
[312331494,1705783838986,-510.2864436,0.00022997,2]
[312331496,1705783838995,-155.0,0.00022997,2]
[312331498,1705783839004,-246.69922222,0.00022997,2]
[312331500,1705783839013,-278.73030459,0.00022999,2]
[312331502,1705783839023,-150.0,0.00022999,2]
[312331503,1705783839032,-151.5463237,0.00022999,2]
[312331505,1705783839041,-151.5463237,0.00022999,2]
[312331507,1705783839051,-150.0,0.00022999,2]
[312331509,1705783839059,-151.5463237,0.00022999,2]